[Event "16th Deltalift Open 2019"]
[Site "Halmstad"]
[Date "2019.05.31"]
[Round "6.23"]
[White "Stray, Gunnar"]
[Black "Lindborg, Patrik"]
[Result "0-1"]
[ECO "A46"]
[WhiteElo "2005"]
[BlackElo "2172"]
[Annotator "ChessBase"]
[PlyCount "120"]
[EventDate "2019.05.30"]
[EventType "swiss"]
[EventCountry "SWE"]
[SourceTitle "playchess.com"]
[Source "ChessBase"]
[SourceQuality "1"]
[TimeControl "40/5400+30:1800+30"]

1. d4 {[%emt 0:00:00]} Nf6 {[%emt 0:00:00]} 2. Nf3 {[%emt 0:00:00]} e6 {[%emt 0:00:11]} 3. e3 {[%emt 0:00:00]} b6 {[%emt 0:00:52]} 4. Bd3 {[%emt 0:00:00]} Bb7 {[%emt 0:00:02]} 5. Nbd2 {[%emt 0:00:04]} c5 {[%emt 0:00:57]} 6. O-O {[%emt 0:00:10]} Be7 {[%emt 0:01:05]} 7. b3 {[%emt 0:00:06]} O-O {[%emt 0:01:03]} 8. Bb2 {[%emt 0:00:06]} d6 {[%emt 0:05:23]} 9. c4 {[%emt 0:03:36]} Nbd7 {[%emt 0:00:53]} 10. Qe2 {[%emt 0:02:45]} Rc8 {[%emt 0:01:28]} 11. Rad1 {[%emt 0:02:00]} Qc7 {[%emt 0:00:42]} 12. Bb1 {[%emt 0:01:56]} Rfe8 {[%emt 0:01:04]} 13. Rfe1 {[%emt 0:03:46]} Nf8 {[%emt 0:02:19]} 14. e4 {[%emt 0:06:54]} cxd4 {[%emt 0:00:39]} 15. Nxd4 {[%emt 0:00:23]} Ng6 {[%emt 0:02:36]} 16. N2f3 {[%emt 0:03:42]} a6 {[%emt 0:02:06]} 17. h3 {[%emt 0:07:03]} Bf8 {[%emt 0:01:42]} 18. Qe3 {[%emt 0:08:58]} d5 {[%emt 0:09:36]} 19. e5 {[%emt 0:06:46]} Nd7 {[%emt 0:09:37]} 20. Rc1 {[%emt 0:04:32]} Qb8 {[%emt 0:02:07]} 21. Bxg6 {[%emt 0:05:15]} hxg6 {[%emt 0:00:36]} 22. Ng5 {[%emt 0:00:50]} Bb4 {[%emt 0:06:10]} 23. Re2 {[%emt 0:04:28]} dxc4 {[%emt 0:01:00]} 24. bxc4 {[%emt 0:03:47]} Ba8 {[%emt 0:06:29]} 25. Qg3 {[%emt 0:03:21]} Nf8 {[%emt 0:09:57]} 26. Ne4 {[%emt 0:07:09]} Red8 {[%emt 0:02:32]} 27. Nb3 {[%emt 0:01:21]} Rd7 {[%emt 0:05:09]} 28. Qh4 {[%emt 0:04:05]} Qb7 {[%emt 0:03:41]} 29. f3 {[%emt 0:01:07]} Rcd8 {[%emt 0:00:59]} 30. c5 {[%emt 0:01:06]} Rd1+ {[%emt 0:02:02]} 31. Rxd1 {[%emt 0:02:49]} Rxd1+ {[%emt 0:00:01]} 32. Kh2 {[%emt 0:00:10]} Bxc5 {[%emt 0:02:34]} 33. Nbxc5 {[%emt 0:05:01]} bxc5 {[%emt 0:00:02]} 34. f4 {[%emt 0:02:12]} Qb5 {[%emt 0:01:39]} 35. Qf2 {[%emt 0:01:39]} Bxe4 {[%emt 0:01:42]} 36. Rxe4 {[%emt 0:00:09]} Nd7 {[%emt 0:00:34]} 37. Re2 {[%emt 0:01:19]} Nb6 {[%emt 0:00:54]} 38. Ba3 {[%emt 0:00:43]} Nd5 {[%emt 0:02:17]} 39. Bxc5 {[%emt 0:00:48]} Nxf4 {[%emt 0:06:11]} 40. Rb2 {[%emt 0:04:09]} Qf1 {[%emt 0:00:16]} 41. Qxf1 {[%emt 0:30:25]} Rxf1 {[%emt 0:30:02]} 42. Rb8+ {[%emt 0:00:15]} Kh7 {[%emt 0:00:04]} 43. Ra8 {[%emt 0:00:07]} Nd3 {[%emt 0:04:59]} 44. Bd4 {[%emt 0:01:48]} Rf4 {[%emt 0:01:53]} 45. Rd8 {[%emt 0:02:34]} Nb4 {[%emt 0:02:41]} 46. Bc5 {[%emt 0:02:15]} Nxa2 {[%emt 0:01:12]} 47. Ra8 {[%emt 0:00:08]} Nc3 {[%emt 0:01:11]} 48. Rxa6 {[%emt 0:00:18]} Nd5 {[%emt 0:00:51]} 49. Ra7 {[%emt 0:00:28]} g5 {[%emt 0:00:18]} 50. g4 {[%emt 0:00:00]} Kg6 {[%emt 0:00:00]} 51. Ra8 {[%emt 0:00:00]} Rc4 {[%emt 0:00:00]} 52. Bd6 {[%emt 0:00:00]} Rc2+ {[%emt 0:00:00]} 53. Kg3 {[%emt 0:00:00]} Rc3+ {[%emt 0:00:00]} 54. Kh2 {[%emt 0:00:00]} Nf4 {[%emt 0:00:00]} 55. Rh8 {[%emt 0:00:00]} Re3 {[%emt 0:00:00]} 56. Bc7 {[%emt 0:00:00]} Nd3 {[%emt 0:00:00]} 57. h4 {[%emt 0:00:00]} gxh4 {[%emt 0:00:00]} 58. Rh5 {[%emt 0:00:00]} Re2+ {[%emt 0:00:00]} 59. Kg1 {[%emt 0:00:00]} Re4 {[%emt 0:00:00]} 60. Rxh4 {[%emt 0:00:00]} Nxe5 {[%emt 0:00:00]} 0-1

[Event "16th Deltalift Open 2019"]
[Site "Halmstad"]
[Date "2019.05.31"]
[Round "6.24"]
[White "Petersson, Baldur Teodor"]
[Black "Ytterberg, Felix"]
[Result "1/2-1/2"]
[ECO "A05"]
[WhiteElo "2163"]
[BlackElo "2018"]
[Annotator "ChessBase"]
[PlyCount "95"]
[EventDate "2019.05.30"]
[EventType "swiss"]
[EventCountry "SWE"]
[SourceTitle "playchess.com"]
[Source "ChessBase"]
[SourceQuality "1"]
[TimeControl "40/5400+30:1800+30"]

1. Nf3 {[%emt 0:00:00]} Nf6 {[%emt 0:00:00]} 2. g3 {[%emt 0:00:00]} d5 {[%emt 0:00:03]} 3. Bg2 {[%emt 0:00:00]} g6 {[%emt 0:00:26]} 4. O-O {[%emt 0:00:00]} Bg7 {[%emt 0:00:11]} 5. d3 {[%emt 0:00:01]} O-O {[%emt 0:00:24]} 6. Nbd2 {[%emt 0:00:06]} b6 {[%emt 0:01:12]} 7. e4 {[%emt 0:00:18]} dxe4 {[%emt 0:00:29]} 8. dxe4 {[%emt 0:00:15]} Bb7 {[%emt 0:00:13]} 9. Re1 {[%emt 0:02:11]} Nxe4 {[%emt 0:00:58]} 10. Nxe4 {[%emt 0:00:33]} Qxd1 {[%emt 0:00:08]} 11. Rxd1 {[%emt 0:00:16]} Bxe4 {[%emt 0:00:12]} 12. Re1 {[%emt 0:00:18]} f5 {[%emt 0:00:30]} 13. Ng5 {[%emt 0:01:19]} Bxg2 {[%emt 0:00:11]} 14. Kxg2 {[%emt 0:00:01]} Re8 {[%emt 0:03:24]} 15. Ne6 {[%emt 0:01:43]} Na6 {[%emt 0:00:18]} 16. c3 {[%emt 0:00:50]} Rab8 {[%emt 0:03:58]} 17. Bf4 {[%emt 0:00:57]} Rb7 {[%emt 0:00:32]} 18. Rad1 {[%emt 0:00:33]} Bf6 {[%emt 0:00:37]} 19. Nd8 {[%emt 0:45:28]} Rb8 {[%emt 0:02:34]} 20. Nc6 {[%emt 0:00:26]} Rb7 {[%emt 0:00:52]} 21. Be5 {[%emt 0:01:08]} Bxe5 {[%emt 0:13:03]} 22. Rxe5 {[%emt 0:00:37]} e6 {[%emt 0:01:37]} 23. Nd8 {[%emt 0:17:57]} Rb8 {[%emt 0:00:39]} 24. Nxe6 {[%emt 0:00:24]} Nc5 {[%emt 0:00:29]} 25. Nxc5 {[%emt 0:00:08]} Rxe5 {[%emt 0:00:09]} 26. Nd7 {[%emt 0:00:05]} Rd8 {[%emt 0:01:06]} 27. Nf6+ {[%emt 0:00:07]} Kf7 {[%emt 0:00:14]} 28. Rxd8 {[%emt 0:00:11]} Kxf6 {[%emt 0:00:10]} 29. Kf3 {[%emt 0:03:08]} Re7 {[%emt 0:01:13]} 30. h4 {[%emt 0:00:20]} h6 {[%emt 0:00:15]} 31. Rh8 {[%emt 0:00:23]} Kg7 {[%emt 0:00:20]} 32. Ra8 {[%emt 0:00:40]} c5 {[%emt 0:00:17]} 33. b4 {[%emt 0:00:53]} cxb4 {[%emt 0:00:38]} 34. cxb4 {[%emt 0:00:01]} g5 {[%emt 0:00:55]} 35. hxg5 {[%emt 0:00:30]} hxg5 {[%emt 0:00:14]} 36. a4 {[%emt 0:00:08]} Kf6 {[%emt 0:00:14]} 37. Rf8+ {[%emt 0:01:22]} Rf7 {[%emt 0:00:37]} 38. Rxf7+ {[%emt 0:00:50]} Kxf7 {[%emt 0:00:13]} 39. Ke3 {[%emt 0:00:25]} Ke6 {[%emt 0:00:10]} 40. Kd4 {[%emt 0:00:06]} Kd6 {[%emt 0:00:37]} 41. f3 {[%emt 0:31:08]} a6 {[%emt 0:31:17]} 42. Kc4 {[%emt 0:03:13]} Kc6 {[%emt 0:00:27]} 43. b5+ {[%emt 0:00:17]} axb5+ {[%emt 0:00:20]} 44. axb5+ {[%emt 0:00:01]} Kd6 {[%emt 0:00:27]} 45. Kd4 {[%emt 0:00:06]} Ke6 {[%emt 0:00:28]} 46. f4 {[%emt 0:00:07]} gxf4 {[%emt 0:00:29]} 47. gxf4 {[%emt 0:00:05]} Kd6 {[%emt 0:00:18]} 48. Kc4 {[%emt 0:00:06]} 1/2-1/2

[Event "16th Deltalift Open 2019"]
[Site "Halmstad"]
[Date "2019.06.01"]
[Round "7.1"]
[White "Cramling, Pia"]
[Black "Jepson, Christian"]
[Result "1-0"]
[ECO "E04"]
[WhiteElo "2454"]
[BlackElo "2395"]
[Annotator "ChessBase"]
[PlyCount "97"]
[EventDate "2019.05.30"]
[EventType "swiss"]
[EventCountry "SWE"]
[SourceTitle "playchess.com"]
[Source "ChessBase"]
[SourceQuality "1"]
[TimeControl "40/5400+30:1800+30"]

1. Nf3 {[%emt 0:02:12]} d5 {[%emt 0:00:00]} 2. d4 {[%emt 0:00:37]} Nf6 {[%emt 0:00:07]} 3. c4 {[%emt 0:00:17]} e6 {[%emt 0:00:03]} 4. g3 {[%emt 0:00:13]} dxc4 {[%emt 0:01:03]} 5. Bg2 {[%emt 0:00:54]} a6 {[%emt 0:00:05]} 6. O-O {[%emt 0:00:14]} Nc6 {[%emt 0:00:05]} 7. e3 {[%emt 0:00:11]} Bd7 {[%emt 0:00:25]} 8. Qe2 {[%emt 0:00:10]} Bd6 {[%emt 0:00:09]} 9. Qxc4 {[%emt 0:01:11]} O-O {[%emt 0:00:37]} 10. Rd1 {[%emt 0:00:39]} Rb8 {[%emt 0:02:26]} 11. Nbd2 {[%emt 0:04:34]} Qe7 {[%emt 0:02:28]} 12. Qc2 {[%emt 0:17:18]} Nb4 {[%emt 0:00:32]} 13. Qb1 {[%emt 0:00:10]} Bb5 {[%emt 0:03:47]} 14. Bf1 {[%emt 0:00:10]} Bxf1 {[%emt 0:03:51]} 15. Kxf1 {[%emt 0:00:12]} Nc6 {[%emt 0:35:19]} 16. b3 {[%emt 0:14:39]} e5 {[%emt 0:00:29]} 17. dxe5 {[%emt 0:00:22]} Nxe5 {[%emt 0:00:49]} 18. Bb2 {[%emt 0:01:01]} c5 {[%emt 0:10:59]} 19. Qf5 {[%emt 0:08:15]} Rfe8 {[%emt 0:07:14]} 20. Nxe5 {[%emt 0:13:00]} Bxe5 {[%emt 0:00:05]} 21. Bxe5 {[%emt 0:00:05]} Qxe5 {[%emt 0:00:06]} 22. Qxe5 {[%emt 0:00:05]} Rxe5 {[%emt 0:00:02]} 23. Nc4 {[%emt 0:00:23]} Re6 {[%emt 0:00:28]} 24. Rac1 {[%emt 0:00:56]} Kf8 {[%emt 0:02:06]} 25. Ke2 {[%emt 0:06:58]} Ke7 {[%emt 0:06:59]} 26. f4 {[%emt 0:01:16]} Ne4 {[%emt 0:09:05]} 27. Kf3 {[%emt 0:07:50]} f6 {[%emt 0:03:47]} 28. h4 {[%emt 0:07:22]} f5 {[%emt 0:03:51]} 29. Rd5 {[%emt 0:00:26]} b5 {[%emt 0:02:19]} 30. Nd2 {[%emt 0:04:16]} Rd8 {[%emt 0:00:53]} 31. Rxd8 {[%emt 0:00:11]} Kxd8 {[%emt 0:00:01]} 32. Nxe4 {[%emt 0:00:21]} fxe4+ {[%emt 0:00:24]} 33. Kg4 {[%emt 0:00:14]} Rg6+ {[%emt 0:00:27]} 34. Kf5 {[%emt 0:00:27]} Rxg3 {[%emt 0:00:04]} 35. Kxe4 {[%emt 0:00:03]} Rg2 {[%emt 0:00:54]} 36. a4 {[%emt 0:01:00]} bxa4 {[%emt 0:05:13]} 37. bxa4 {[%emt 0:00:10]} Ra2 {[%emt 0:00:03]} 38. Rxc5 {[%emt 0:05:21]} Rxa4+ {[%emt 0:00:04]} 39. Kf5 {[%emt 0:00:10]} Rb4 {[%emt 0:00:10]} 40. Rc6 {[%emt 0:01:01]} a5 {[%emt 0:01:54]} 41. Ra6 {[%emt 0:34:38]} g6+ {[%emt 0:04:58]} 42. Ke5 {[%emt 0:00:00]} Rb5+ {[%emt 0:00:46]} 43. Kd6 {[%emt 0:00:00]} Ke8 {[%emt 0:01:00]} 44. e4 {[%emt 0:00:00]} Rb4 {[%emt 0:06:27]} 45. e5 {[%emt 0:00:00]} Rd4+ {[%emt 0:10:03]} 46. Ke6 {[%emt 0:00:00]} Kf8 {[%emt 0:04:49]} 47. f5 {[%emt 0:00:00]} gxf5 {[%emt 0:00:04]} 48. Kf6 {[%emt 0:00:00]} Ke8 {[%emt 0:00:57]} 49. e6 {[%emt 0:00:00]} 1-0

[Event "16th Deltalift Open 2019"]
[Site "Halmstad"]
[Date "2019.06.01"]
[Round "7.3"]
[White "Brynell, Stellan"]
[Black "Hector, Jonny"]
[Result "1/2-1/2"]
[ECO "D12"]
[WhiteElo "2406"]
[BlackElo "2488"]
[Annotator "ChessBase"]
[PlyCount "99"]
[EventDate "2019.05.30"]
[EventType "swiss"]
[EventCountry "SWE"]
[SourceTitle "playchess.com"]
[Source "ChessBase"]
[SourceQuality "1"]
[TimeControl "40/5400+30:1800+30"]

1. d4 {[%emt 0:00:16]} d5 {[%emt 0:00:00]} 2. c4 {[%emt 0:00:03]} c6 {[%emt 0:00:00]} 3. Nf3 {[%emt 0:01:13]} Nf6 {[%emt 0:00:00]} 4. e3 {[%emt 0:00:44]} Bf5 {[%emt 0:00:12]} 5. Bd3 {[%emt 0:00:37]} Bxd3 {[%emt 0:04:49]} 6. Qxd3 {[%emt 0:00:04]} e6 {[%emt 0:01:08]} 7. O-O {[%emt 0:00:09]} Be7 {[%emt 0:01:17]} 8. Nc3 {[%emt 0:00:51]} O-O {[%emt 0:00:38]} 9. Rd1 {[%emt 0:13:10]} Bb4 {[%emt 0:03:41]} 10. Bd2 {[%emt 0:03:35]} Bxc3 {[%emt 0:02:24]} 11. bxc3 {[%emt 0:10:03]} Qc7 {[%emt 0:16:01]} 12. Rdc1 {[%emt 0:18:26]} Rc8 {[%emt 0:00:26]} 13. Be1 {[%emt 0:08:33]} Nbd7 {[%emt 0:03:17]} 14. Nd2 {[%emt 0:00:39]} Ng4 {[%emt 0:06:56]} 15. Nf1 {[%emt 0:05:25]} c5 {[%emt 0:01:23]} 16. f3 {[%emt 0:05:47]} Ngf6 {[%emt 0:01:34]} 17. Bg3 {[%emt 0:03:53]} Qc6 {[%emt 0:01:12]} 18. cxd5 {[%emt 0:01:16]} exd5 {[%emt 0:00:29]} 19. Rcb1 {[%emt 0:00:30]} c4 {[%emt 0:06:51]} 20. Qc2 {[%emt 0:00:14]} Re8 {[%emt 0:02:02]} 21. a4 {[%emt 0:01:23]} Re7 {[%emt 0:09:00]} 22. a5 {[%emt 0:04:16]} Rae8 {[%emt 0:01:46]} 23. Qb2 {[%emt 0:01:01]} b6 {[%emt 0:04:37]} 24. axb6 {[%emt 0:00:38]} axb6 {[%emt 0:00:08]} 25. Ra7 {[%emt 0:01:12]} g5 {[%emt 0:09:08]} 26. Qc2 {[%emt 0:01:35]} Nf8 {[%emt 0:06:09]} 27. Rxe7 {[%emt 0:01:22]} Rxe7 {[%emt 0:00:03]} 28. Qf5 {[%emt 0:00:12]} h6 {[%emt 0:00:27]} 29. h4 {[%emt 0:06:12]} Qe6 {[%emt 0:01:17]} 30. Qxe6 {[%emt 0:00:05]} Rxe6 {[%emt 0:00:07]} 31. hxg5 {[%emt 0:00:10]} hxg5 {[%emt 0:00:12]} 32. Bc7 {[%emt 0:00:37]} N8d7 {[%emt 0:04:04]} 33. g4 {[%emt 0:01:31]} Rc6 {[%emt 0:02:09]} 34. Bd8 {[%emt 0:02:05]} Kf8 {[%emt 0:00:17]} 35. Ng3 {[%emt 0:00:36]} Ke8 {[%emt 0:02:32]} 36. Bxf6 {[%emt 0:00:10]} Nxf6 {[%emt 0:00:21]} 37. e4 {[%emt 0:06:14]} dxe4 {[%emt 0:02:23]} 38. Nxe4 {[%emt 0:00:19]} Nxe4 {[%emt 0:03:27]} 39. fxe4 {[%emt 0:00:02]} Re6 {[%emt 0:00:47]} 40. e5 {[%emt 0:00:42]} f6 {[%emt 0:00:37]} 41. exf6 {[%emt 0:31:46]} Rxf6 {[%emt 0:30:14]} 42. Kg2 {[%emt 0:00:00]} Kd7 {[%emt 0:00:00]} 43. Rb5 {[%emt 0:00:00]} Rg6 {[%emt 0:00:00]} 44. Rb4 {[%emt 0:00:00]} Kc6 {[%emt 0:00:00]} 45. Rxc4+ {[%emt 0:00:00]} Kd5 {[%emt 0:00:00]} 46. Rc8 {[%emt 0:00:00]} Ke4 {[%emt 0:00:00]} 47. Kg3 {[%emt 0:00:00]} Rf6 {[%emt 0:00:00]} 48. Re8+ {[%emt 0:00:00]} Kd3 {[%emt 0:00:00]} 49. Rg8 {[%emt 0:00:00]} Kxc3 {[%emt 0:00:00]} 50. Rxg5 {[%emt 0:00:00]} 1/2-1/2

[Event "16th Deltalift Open 2019"]
[Site "Halmstad"]
[Date "2019.06.01"]
[Round "7.4"]
[White "Seo, Jung Min"]
[Black "Pantzar, Milton"]
[Result "1-0"]
[ECO "C99"]
[WhiteElo "2377"]
[BlackElo "2390"]
[Annotator "ChessBase"]
[PlyCount "79"]
[EventDate "2019.05.30"]
[EventType "swiss"]
[EventCountry "SWE"]
[SourceTitle "playchess.com"]
[Source "ChessBase"]
[SourceQuality "1"]
[TimeControl "40/5400+30:1800+30"]

1. e4 {[%emt 0:00:00]} e5 {[%emt 0:00:00]} 2. Nf3 {[%emt 0:00:00]} Nc6 {[%emt 0:00:00]} 3. Bb5 {[%emt 0:00:00]} a6 {[%emt 0:00:06]} 4. Ba4 {[%emt 0:00:03]} Nf6 {[%emt 0:00:07]} 5. O-O {[%emt 0:00:04]} Be7 {[%emt 0:00:27]} 6. Re1 {[%emt 0:01:02]} b5 {[%emt 0:00:25]} 7. Bb3 {[%emt 0:00:03]} d6 {[%emt 0:00:08]} 8. c3 {[%emt 0:00:53]} O-O {[%emt 0:00:06]} 9. h3 {[%emt 0:00:04]} Na5 {[%emt 0:00:16]} 10. Bc2 {[%emt 0:00:05]} c5 {[%emt 0:00:03]} 11. d4 {[%emt 0:00:21]} Qc7 {[%emt 0:00:05]} 12. Nbd2 {[%emt 0:01:38]} cxd4 {[%emt 0:05:49]} 13. cxd4 {[%emt 0:00:05]} Nc6 {[%emt 0:00:55]} 14. d5 {[%emt 0:00:44]} Nb4 {[%emt 0:01:02]} 15. Bb1 {[%emt 0:00:11]} a5 {[%emt 0:00:54]} 16. Nf1 {[%emt 0:01:30]} Bd7 {[%emt 0:02:47]} 17. Be3 {[%emt 0:05:48]} Rfc8 {[%emt 0:02:00]} 18. Re2 {[%emt 0:00:17]} Qb7 {[%emt 0:08:05]} 19. Bd2 {[%emt 0:04:32]} Na6 {[%emt 0:06:22]} 20. Ng3 {[%emt 0:02:03]} a4 {[%emt 0:05:17]} 21. Re1 {[%emt 0:13:00]} Nc5 {[%emt 0:07:12]} 22. Bb4 {[%emt 0:03:17]} Bd8 {[%emt 0:04:25]} 23. Qd2 {[%emt 0:02:27]} Ne8 {[%emt 0:05:40]} 24. Qe2 {[%emt 0:05:20]} g6 {[%emt 0:10:39]} 25. Qe3 {[%emt 0:03:10]} Ng7 {[%emt 0:03:09]} 26. Nxe5 {[%emt 0:06:38]} Ba5 {[%emt 0:07:19]} 27. Nxd7 {[%emt 0:02:18]} Nxd7 {[%emt 0:00:13]} 28. Bxa5 {[%emt 0:00:47]} Rxa5 {[%emt 0:00:03]} 29. Bd3 {[%emt 0:00:54]} b4 {[%emt 0:03:09]} 30. Ne2 {[%emt 0:01:02]} a3 {[%emt 0:01:29]} 31. b3 {[%emt 0:00:27]} Rac5 {[%emt 0:01:05]} 32. f4 {[%emt 0:00:43]} Nh5 {[%emt 0:01:58]} 33. Kh2 {[%emt 0:01:04]} Qb6 {[%emt 0:01:53]} 34. Bc4 {[%emt 0:01:39]} Qd8 {[%emt 0:00:38]} 35. Nd4 {[%emt 0:00:46]} Nb6 {[%emt 0:01:16]} 36. Nc6 {[%emt 0:00:32]} Qf8 {[%emt 0:03:56]} 37. Be2 {[%emt 0:03:16]} Nf6 {[%emt 0:01:10]} 38. Qd4 {[%emt 0:00:13]} Nbd7 {[%emt 0:00:45]} 39. Bf3 {[%emt 0:00:37]} Qh6 {[%emt 0:01:05]} 40. e5 {[%emt 0:00:24]} 1-0

[Event "16th Deltalift Open 2019"]
[Site "Halmstad"]
[Date "2019.06.01"]
[Round "7.5"]
[White "Ziegler, Ari"]
[Black "Sjodahl, Pontus"]
[Result "0-1"]
[ECO "A17"]
[WhiteElo "2300"]
[BlackElo "2435"]
[Annotator "ChessBase"]
[PlyCount "108"]
[EventDate "2019.05.30"]
[EventType "swiss"]
[EventCountry "SWE"]
[SourceTitle "playchess.com"]
[Source "ChessBase"]
[SourceQuality "1"]
[TimeControl "40/5400+30:1800+30"]

1. c4 {[%emt 0:00:00]} Nf6 {[%emt 0:00:00]} 2. Nc3 {[%emt 0:00:38]} e6 {[%emt 0:00:00]} 3. Nf3 {[%emt 0:00:36]} d5 {[%emt 0:01:09]} 4. e3 {[%emt 0:00:12]} Be7 {[%emt 0:03:32]} 5. d4 {[%emt 0:00:32]} O-O {[%emt 0:00:35]} 6. b3 {[%emt 0:03:06]} b6 {[%emt 0:03:50]} 7. Bd3 {[%emt 0:00:23]} Bb7 {[%emt 0:01:29]} 8. Qc2 {[%emt 0:03:10]} c5 {[%emt 0:01:50]} 9. cxd5 {[%emt 0:03:17]} exd5 {[%emt 0:01:24]} 10. O-O {[%emt 0:07:18]} Nc6 {[%emt 0:06:27]} 11. a3 {[%emt 0:00:16]} h6 {[%emt 0:25:22]} 12. Re1 {[%emt 0:03:25]} cxd4 {[%emt 0:06:00]} 13. exd4 {[%emt 0:01:07]} Bd6 {[%emt 0:00:58]} 14. h3 {[%emt 0:07:07]} Rc8 {[%emt 0:02:38]} 15. Bf5 {[%emt 0:00:47]} Rc7 {[%emt 0:00:41]} 16. b4 {[%emt 0:06:12]} a5 {[%emt 0:10:24]} 17. Qb3 {[%emt 0:09:49]} axb4 {[%emt 0:01:52]} 18. Nb5 {[%emt 0:00:08]} Re7 {[%emt 0:02:17]} 19. Rd1 {[%emt 0:12:13]} Ba6 {[%emt 0:09:42]} 20. Nxd6 {[%emt 0:03:44]} Qxd6 {[%emt 0:00:06]} 21. axb4 {[%emt 0:08:48]} Be2 {[%emt 0:01:09]} 22. b5 {[%emt 0:00:19]} Bxd1 {[%emt 0:01:54]} 23. Qxd1 {[%emt 0:01:08]} Ra7 {[%emt 0:00:45]} 24. Rxa7 {[%emt 0:05:17]} Nxa7 {[%emt 0:00:10]} 25. Qb3 {[%emt 0:00:07]} Qc7 {[%emt 0:02:21]} 26. Ba3 {[%emt 0:06:39]} Ra8 {[%emt 0:01:28]} 27. Bd3 {[%emt 0:01:57]} Rc8 {[%emt 0:06:03]} 28. Bb2 {[%emt 0:02:17]} Re8 {[%emt 0:00:49]} 29. g3 {[%emt 0:03:31]} Nc8 {[%emt 0:00:26]} 30. Ne5 {[%emt 0:00:45]} Nd6 {[%emt 0:00:41]} 31. Kg2 {[%emt 0:01:05]} Nde4 {[%emt 0:02:10]} 32. Nc6 {[%emt 0:04:21]} Qd7 {[%emt 0:01:05]} 33. f3 {[%emt 0:02:03]} Nd2 {[%emt 0:03:01]} 34. Qc3 {[%emt 0:01:27]} Nc4 {[%emt 0:00:29]} 35. Bc1 {[%emt 0:00:27]} Qe6 {[%emt 0:01:31]} 36. g4 {[%emt 0:02:12]} Qe1 {[%emt 0:01:26]} 37. Qxe1 {[%emt 0:00:05]} Rxe1 {[%emt 0:00:04]} 38. Bf4 {[%emt 0:00:07]} Rd1 {[%emt 0:00:26]} 39. Bf5 {[%emt 0:00:47]} g5 {[%emt 0:01:43]} 40. Bc7 {[%emt 0:01:07]} Rd2+ {[%emt 0:00:42]} 41. Kg1 {[%emt 0:31:16]} Rb2 {[%emt 0:30:27]} 42. Bd8 {[%emt 0:00:00]} Kg7 {[%emt 0:00:00]} 43. Ne7 {[%emt 0:00:00]} Ne3 {[%emt 0:00:00]} 44. Bxb6 {[%emt 0:00:00]} Ng8 {[%emt 0:00:00]} 45. Nc6 {[%emt 0:00:00]} Rxb5 {[%emt 0:00:00]} 46. Bd8 {[%emt 0:00:00]} Nxf5 {[%emt 0:00:00]} 47. gxf5 {[%emt 0:00:00]} Rb2 {[%emt 0:00:00]} 48. h4 {[%emt 0:00:00]} gxh4 {[%emt 0:00:00]} 49. Bxh4 {[%emt 0:00:00]} Rc2 {[%emt 0:00:00]} 50. Ne5 {[%emt 0:00:00]} f6 {[%emt 0:00:00]} 51. Ng4 {[%emt 0:00:00]} h5 {[%emt 0:00:00]} 52. Ne3 {[%emt 0:00:00]} Rd2 {[%emt 0:00:00]} 53. Bf2 {[%emt 0:00:00]} Rxd4 {[%emt 0:00:00]} 54. Kg2 {[%emt 0:00:00]} Ne7 {[%emt 0:00:00]} 0-1

[Event "16th Deltalift Open 2019"]
[Site "Halmstad"]
[Date "2019.06.01"]
[Round "7.6"]
[White "Silseth, Simon"]
[Black "Lindberg, Bengt"]
[Result "0-1"]
[ECO "B25"]
[WhiteElo "2268"]
[BlackElo "2382"]
[Annotator "ChessBase"]
[PlyCount "94"]
[EventDate "2019.05.30"]
[EventType "swiss"]
[EventCountry "SWE"]
[SourceTitle "playchess.com"]
[Source "ChessBase"]
[SourceQuality "1"]
[TimeControl "40/5400+30:1800+30"]

1. e4 {[%emt 0:00:00]} c5 {[%emt 0:02:58]} 2. Nc3 {[%emt 0:00:30]} Nc6 {[%emt 0:00:04]} 3. g3 {[%emt 0:00:15]} g6 {[%emt 0:00:07]} 4. Bg2 {[%emt 0:00:15]} Bg7 {[%emt 0:00:05]} 5. d3 {[%emt 0:00:10]} d6 {[%emt 0:00:17]} 6. Nf3 {[%emt 0:00:25]} Rb8 {[%emt 0:00:21]} 7. Be3 {[%emt 0:00:54]} Nd4 {[%emt 0:00:20]} 8. Bxd4 {[%emt 0:03:35]} cxd4 {[%emt 0:00:12]} 9. Ne2 {[%emt 0:00:41]} e5 {[%emt 0:00:30]} 10. O-O {[%emt 0:00:27]} Ne7 {[%emt 0:01:21]} 11. c3 {[%emt 0:03:52]} dxc3 {[%emt 0:01:37]} 12. bxc3 {[%emt 0:02:27]} O-O {[%emt 0:00:08]} 13. c4 {[%emt 0:00:44]} h6 {[%emt 0:06:40]} 14. h3 {[%emt 0:02:38]} Be6 {[%emt 0:06:24]} 15. Nc3 {[%emt 0:03:36]} a6 {[%emt 0:04:21]} 16. Nd5 {[%emt 0:06:08]} Nxd5 {[%emt 0:03:48]} 17. cxd5 {[%emt 0:04:47]} Bd7 {[%emt 0:00:06]} 18. Rb1 {[%emt 0:01:27]} b5 {[%emt 0:05:14]} 19. d4 {[%emt 0:08:02]} Qb6 {[%emt 0:00:40]} 20. dxe5 {[%emt 0:02:53]} dxe5 {[%emt 0:00:30]} 21. Qd2 {[%emt 0:03:00]} Rfc8 {[%emt 0:07:15]} 22. Kh2 {[%emt 0:02:01]} Rc4 {[%emt 0:01:31]} 23. Ne1 {[%emt 0:07:34]} Rbc8 {[%emt 0:07:11]} 24. f4 {[%emt 0:02:13]} Qd6 {[%emt 0:00:11]} 25. Rf2 {[%emt 0:03:27]} f5 {[%emt 0:01:53]} 26. Nd3 {[%emt 0:05:07]} exf4 {[%emt 0:01:02]} 27. Qxf4 {[%emt 0:02:43]} Qxf4 {[%emt 0:00:51]} 28. gxf4 {[%emt 0:03:54]} fxe4 {[%emt 0:08:39]} 29. Ne5 {[%emt 0:00:15]} e3 {[%emt 0:00:22]} 30. Re2 {[%emt 0:01:52]} Bf5 {[%emt 0:01:50]} 31. Rd1 {[%emt 0:03:36]} Rxf4 {[%emt 0:03:25]} 32. Nc6 {[%emt 0:00:23]} Bf6 {[%emt 0:08:34]} 33. Rxe3 {[%emt 0:01:16]} Rf2 {[%emt 0:01:59]} 34. Kg1 Rxa2 {[%emt 0:01:15]} 35. Ne7+ {[%emt 0:13:50]} Bxe7 {[%emt 0:01:02]} 36. Rxe7 {[%emt 0:00:05]} Rcc2 {[%emt 0:02:20]} 37. Bf3 {[%emt 0:04:57]} Rf2 {[%emt 0:05:22]} 38. d6 {[%emt 0:03:00]} Rxf3 {[%emt 0:14:57]} 39. d7 {[%emt 0:00:15]} Rg3+ {[%emt 0:01:24]} 40. Kh1 {[%emt 0:00:17]} Rxh3+ {[%emt 0:00:07]} 41. Kg1 {[%emt 0:30:07]} Rg3+ {[%emt 0:31:09]} 42. Kh1 {[%emt 0:00:26]} Bxd7 {[%emt 0:02:21]} 43. Rdxd7 {[%emt 0:00:34]} Rf3 {[%emt 0:00:00]} 44. Kg1 {[%emt 0:00:00]} Raf2 {[%emt 0:00:00]} 45. Rg7+ {[%emt 0:00:00]} Kf8 {[%emt 0:00:00]} 46. Rxg6 {[%emt 0:00:00]} Rf6 {[%emt 0:00:00]} 47. Rg3 {[%emt 0:00:00]} R2f5 {[%emt 0:00:00]} 0-1